fUSD/lending_fUSD_20250123
["ID","MTS","AMOUNT","RATE_DAILY","PERIOD"]
[350170655,1737669043839,-500.0,0.00016438,2]
[350170656,1737669043848,-500.0,0.00016438,2]
[350170657,1737669043857,-500.0,0.00016438,2]
[350170658,1737669043868,-485.40734964,0.00016438,2]
[350170659,1737669043880,-500.0,0.00016438,2]
[350170660,1737669043890,-500.0,0.00016438,2]
[350170661,1737669043900,-500.0,0.00016438,2]
[350170662,1737669043909,-500.0,0.00016438,2]
[350170663,1737669043919,-265.49391343,0.00016438,2]
[350170664,1737669043928,-500.0,0.00016438,2]
[350170665,1737669043938,-500.0,0.00016438,2]
[350170666,1737669043947,-500.0,0.00016438,2]
[350170667,1737669043957,-500.0,0.00016438,2]
[350170668,1737669043967,-500.0,0.00016438,2]
[350170669,1737669043977,-500.0,0.00016438,2]
[350170670,1737669043987,-500.0,0.00016438,2]
[350170671,1737669043997,-500.0,0.00016438,2]
[350170672,1737669044007,-500.0,0.00016438,2]
[350170673,1737669044016,-500.0,0.00016438,2]
[350170674,1737669044025,-500.0,0.00016438,2]
[350170675,1737669044034,-500.0,0.00016438,2]
[350170676,1737669044044,-500.0,0.00016438,2]
[350170677,1737669044053,-500.0,0.00016438,2]
[350170678,1737669044063,-500.0,0.00016438,2]
[350170679,1737669044072,-501.14,0.00016438,2]
[350170680,1737669044082,-505.23701882,0.00016438,2]
[350170681,1737669044092,-392.53563001,0.00016438,2]
[350170682,1737669044108,-107.46436999,0.00016438,2]
[350170683,1737669044118,-500.0,0.00016438,2]
[350170684,1737669044127,-500.0,0.00016438,2]
[350170685,1737669044137,-500.0,0.00016438,2]
[350170686,1737669044146,-500.0,0.00016438,2]
[350170687,1737669044156,-513.92112885,0.00016438,2]
[350170688,1737669044166,-500.0,0.00016438,2]
[350170689,1737669044176,-500.0,0.00016438,2]
[350170690,1737669044185,-350.0,0.00016438,2]
[350170691,1737669044194,-500.0,0.00016438,2]
[350170692,1737669044203,-500.0,0.00016438,2]
[350170693,1737669044213,-500.0,0.00016438,2]
[350170694,1737669044222,-63.11455116,0.00016438,2]
[350170695,1737669044234,-436.88544884,0.00016438,2]
[350170696,1737669044243,-500.0,0.00016438,2]
[350170697,1737669044253,-500.0,0.00016438,2]
[350170698,1737669044262,-459.29268303,0.00016438,2]
[350170699,1737669044271,-500.0,0.00016438,2]
[350170700,1737669044280,-500.0,0.00016438,2]
[350170701,1737669044289,-500.0,0.00016438,2]
[350170702,1737669044299,-405.62904079,0.00016438,2]
[350170703,1737669044307,-500.0,0.00016438,2]
[350170704,1737669044320,-500.0,0.00016438,2]
[350170705,1737669044330,-500.0,0.00016438,2]
[350170706,1737669044339,-646.3,0.00016438,2]
[350170707,1737669044348,-282.32353626,0.00016438,2]
[350170708,1737669044358,-500.0,0.00016438,2]
[350170709,1737669044367,-500.0,0.00016438,2]
[350170710,1737669044376,-500.0,0.00016438,2]
[350170711,1737669044385,-432.67336299,0.00016438,2]
[350170712,1737669044395,-500.0,0.00016438,2]
[350170713,1737669044404,-500.0,0.00016438,2]
[350170714,1737669044413,-500.0,0.00016438,2]
[350170715,1737669044423,-500.0,0.00016438,2]
[350170716,1737669044432,-479.63908879,0.00016438,2]
[350170717,1737669044441,-333.8935889,0.00016438,2]
[350170718,1737669044452,-166.1064111,0.00016438,2]
[350170719,1737669044461,-577.07725721,0.00016438,2]
[350170720,1737669044470,-500.0,0.00016438,2]
[350170721,1737669044479,-448.1970317,0.00016438,2]
[350170722,1737669044491,-51.8029683,0.00016438,2]
[350170723,1737669044500,-500.0,0.00016438,2]
[350170724,1737669044509,-500.0,0.00016438,2]
[350170725,1737669044518,-500.0,0.00016438,2]
[350170726,1737669044527,-500.0,0.00016438,2]
[350170727,1737669044536,-500.0,0.00016438,2]
[350170728,1737669044545,-10.7570317,0.00016438,2]
[350170729,1737669044560,-489.2429683,0.00016438,2]
[350170730,1737669044571,-500.0,0.00016438,2]
[350170731,1737669044580,-500.0,0.00016438,2]
[350170732,1737669044590,-500.0,0.00016438,2]
[350170733,1737669044599,-509.78565763,0.00016438,2]
[350170734,1737669044608,-500.0,0.00016438,2]
[350170735,1737669044617,-502.23893511,0.00016438,2]
[350170736,1737669044626,-500.0,0.00016438,2]
[350170737,1737669044635,-500.0,0.00016438,2]
[350170738,1737669044645,-500.0,0.00016438,2]
[350170739,1737669044654,-617.30008859,0.00016438,2]
[350170740,1737669044663,-276.38813433,0.00016438,2]
[350170741,1737669044673,-300.0,0.00016509,2]
[350170742,1737669044682,-1141.21,0.0001654,2]
[350170743,1737669044691,-406.21,0.00016563,2]
[350170744,1737669044700,-3493.40545296,0.00016581,2]
[350170745,1737669044710,-200.0,0.00016583,2]
[350170746,1737669044720,-200.0,0.00016583,2]
[350170747,1737669044729,-1064.8953176,0.0001659,2]
[350170748,1737669044741,-305.95052,0.0001659,2]
[350170749,1737669044752,-614.19207142,0.0001659,2]
[350170750,1737669044763,-1508.36754394,0.0001659,2]
[350170751,1737669044773,-401.68733041,0.00016591,2]
[350170752,1737669044782,-316.7422,0.0001661,2]
[350170753,1737669044792,-164.76416294,0.00016611,2]
[350170754,1737669044801,-3623.17292238,0.00016612,2]
[350170755,1737669044810,-200.0,0.00016617,2]
[350170756,1737669044820,-451.0,0.0001663,2]
[350170757,1737669044830,-3493.40545296,0.00016632,2]
[350170758,1737669044839,-1749.87100657,0.00016633,2]
[350170759,1737669044850,-1743.53444639,0.00016633,2]
[350170760,1737669044859,-401.68733041,0.00016636,2]
[350170761,1737669044868,-401.68733041,0.00016654,2]
[350170762,1737669044878,-306.6993964,0.00016666,2]
[350170763,1737669044889,-3186.70605656,0.00016666,2]
[350170764,1737669044899,-401.68733041,0.00016687,2]
[350170765,1737669044908,-200.0,0.00016688,2]
[350170766,1737669044918,-401.68733041,0.00016688,2]
[350170767,1737669044927,-543.17,0.000167,2]
[350170768,1737669044936,-500.0,0.00016709,2]
[350170769,1737669044945,-500.0,0.00016709,2]
[350170770,1737669044954,-500.0,0.00016709,2]
[350170771,1737669044963,-500.0,0.00016709,2]
[350170772,1737669044973,-500.0,0.00016709,2]
[350170773,1737669044983,-921.89,0.00016709,2]
[350170774,1737669044992,-3.98820762,0.00016709,2]
[350170775,1737669045008,-525.55179238,0.00016709,2]
[350170776,1737669045017,-500.0,0.00016709,2]
[350170777,1737669045028,-143.44820762,0.00016709,2]
[350170778,1737669045040,-256.9,0.00016709,2]
[350170782,1737669045903,-321.635,0.00016673,2]
[350170783,1737669045914,-5892.39147996,0.00016673,2]
[350170784,1737669045923,-541.34179238,0.00016709,2]
[350170785,1737669045932,-892.21,0.00016709,2]
[350170786,1737669045941,-784.7,0.00016709,2]
[350170787,1737669045950,-500.0,0.00016709,2]
[350170788,1737669045959,-512.23,0.00016709,2]
[350170789,1737669045968,-500.0,0.00016709,2]
[350170790,1737669045977,-707.12672766,0.00016709,2]
[350170791,1737669045988,-296.31327234,0.00016709,2]
[350170792,1737669045998,-338.62600176,0.00016709,2]
[350170793,1737669046024,-834.85399824,0.00016709,2]
[350170794,1737669046033,-500.0,0.00016709,2]
[350170795,1737669046042,-1216.85,0.00016709,2]
[350170796,1737669046051,-500.0,0.00016709,2]
[350170797,1737669046063,-530.68,0.00016709,2]
[350170798,1737669046072,-834.89,0.00016709,2]
[350170799,1737669046083,-500.0,0.00016709,2]
[350170800,1737669046092,-500.0,0.00016709,2]
[350170801,1737669046101,-500.0,0.00016709,2]
[350170802,1737669046110,-840.34,0.00016709,2]
[350170803,1737669046121,-500.0,0.00016709,2]
[350170804,1737669046130,-500.0,0.00016709,2]
[350170805,1737669046139,-500.0,0.00016709,2]
[350170806,1737669046148,-505.67892348,0.00016709,2]
[350170807,1737669046157,-535.75219996,0.00016709,2]
[350170808,1737669046168,-586.494231,0.00016709,2]
[350170809,1737669046177,-1006.61,0.00016709,2]
[350170810,1737669046188,-500.0,0.00016709,2]
[350170811,1737669046197,-581.21,0.00016709,2]
[350170812,1737669046207,-383.22056369,0.0001671,2]
[350170813,1737669046218,-500.0,0.0001671,2]
[350170814,1737669046229,-500.0,0.0001671,2]
[350170815,1737669046240,-500.0,0.0001671,2]
[350170816,1737669046250,-500.0,0.0001671,2]
[350170817,1737669046261,-500.0,0.0001671,2]
[350170818,1737669046271,-500.0,0.0001671,2]
[350170819,1737669046283,-176.06780886,0.0001671,2]
[350170820,1737669046292,-500.0,0.0001671,2]
[350170821,1737669046301,-500.0,0.0001671,2]
[350170822,1737669046310,-500.0,0.0001671,2]
[350170823,1737669046325,-500.0,0.0001671,2]
[350170824,1737669046335,-500.0,0.0001671,2]
[350170825,1737669046344,-338.589569,0.0001671,2]
[350170826,1737669046353,-500.0,0.0001671,2]
[350170828,1737669046363,-682.39,0.0001671,2]
[350170830,1737669046372,-500.0,0.0001671,2]
[350170831,1737669046381,-500.0,0.0001671,2]
[350170833,1737669046391,-1054.68,0.0001671,2]
[350170835,1737669046400,-335.16992689,0.0001671,2]
[350170838,1737669046410,-206.88622557,0.0001671,2]
[350170840,1737669046420,-500.0,0.0001671,2]
[350170842,1737669046429,-1440.14,0.0001671,2]
[350170844,1737669046439,-689.97,0.0001671,2]
[350170845,1737669046448,-1533.67,0.0001671,2]
[350170847,1737669046457,-1803.96,0.0001671,2]
[350170849,1737669046466,-500.0,0.0001671,2]
[350170851,1737669046476,-987.73,0.0001671,2]
[350170854,1737669046486,-729.08,0.0001671,2]
[350170855,1737669046495,-500.0,0.0001671,2]
[350170857,1737669046504,-500.0,0.0001671,2]
[350170859,1737669046513,-500.0,0.0001671,2]
[350170861,1737669046523,-500.0,0.0001671,2]
[350170864,1737669046532,-1118.58,0.0001671,2]
[350170865,1737669046541,-500.0,0.0001671,2]
[350170866,1737669046550,-2536.72,0.0001671,2]
[350170867,1737669046559,-260.95214084,0.0001671,2]
[350170869,1737669046570,-364.86676982,0.0001671,2]
[350170871,1737669046579,-500.0,0.0001671,2]
[350170873,1737669046588,-500.0,0.0001671,2]
[350170875,1737669046598,-1379.85,0.0001671,2]
[350170877,1737669046607,-500.0,0.0001671,2]
[350170879,1737669046616,-500.0,0.0001671,2]
[350170881,1737669046626,-500.0,0.0001671,2]
[350170883,1737669046636,-511.51,0.0001671,2]
[350170885,1737669046646,-500.0,0.0001671,2]
[350170886,1737669046656,-805.28,0.0001671,2]
[350170887,1737669046665,-500.0,0.0001671,2]
[350170888,1737669046675,-500.0,0.0001671,2]
[350170889,1737669046684,-500.0,0.0001671,2]
[350170890,1737669046693,-500.0,0.0001671,2]
[350170891,1737669046702,-500.0,0.0001671,2]
[350170892,1737669046712,-500.0,0.0001671,2]
[350170893,1737669046721,-500.0,0.0001671,2]
[350170894,1737669046731,-1531.69,0.0001671,2]
[350170895,1737669046740,-500.0,0.0001671,2]
[350170896,1737669046749,-500.0,0.0001671,2]
[350170897,1737669046759,-500.0,0.0001671,2]
[350170898,1737669046768,-918.08,0.0001671,2]
[350170899,1737669046778,-500.0,0.0001671,2]
[350170900,1737669046787,-500.0,0.0001671,2]
[350170901,1737669046796,-500.0,0.0001671,2]
[350170902,1737669046805,-768.44,0.0001671,2]
[350170903,1737669046816,-500.0,0.0001671,2]
[350170904,1737669046825,-500.0,0.0001671,2]
[350170905,1737669046839,-557.03539044,0.0001671,2]
[350170906,1737669046848,-529.9,0.0001671,2]
[350170907,1737669046858,-568.27269664,0.0001671,2]
[350170908,1737669046867,-480.22995985,0.0001671,2]
[350170909,1737669046880,-19.77004015,0.0001671,2]
[350170910,1737669046890,-500.0,0.0001671,2]
[350170911,1737669046900,-500.0,0.0001671,2]
[350170912,1737669046909,-208.12905826,0.0001671,2]
[350170913,1737669046918,-500.0,0.0001671,2]
[350170914,1737669046928,-500.0,0.0001671,2]
[350170915,1737669046937,-500.0,0.0001671,2]
[350170916,1737669046948,-500.0,0.0001671,2]
[350170917,1737669046957,-500.0,0.0001671,2]
[350170918,1737669046966,-616.88,0.0001671,2]
[350170919,1737669046975,-500.0,0.0001671,2]
[350170920,1737669046985,-509.27741876,0.0001671,2]
[350170921,1737669046995,-500.0,0.0001671,2]
[350170922,1737669047004,-500.0,0.0001671,2]
[350170923,1737669047014,-500.0,0.0001671,2]
[350170924,1737669047023,-500.0,0.0001671,2]
[350170925,1737669047032,-1416.81,0.0001671,2]
[350170926,1737669047043,-500.0,0.0001671,2]
[350170927,1737669047053,-500.0,0.0001671,2]
[350170928,1737669047064,-500.0,0.0001671,2]
[350170929,1737669047073,-21.13347683,0.0001671,2]
[350170930,1737669047096,-478.86652317,0.0001671,2]
[350170931,1737669047105,-500.0,0.0001671,2]
[350170932,1737669047115,-500.0,0.0001671,2]
[350170933,1737669047124,-660.99,0.0001671,2]
[350170934,1737669047133,-500.0,0.0001671,2]
[350170935,1737669047142,-288.29570884,0.0001671,2]
[350170936,1737669047151,-500.0,0.0001671,2]
[350170937,1737669047160,-508.49051132,0.0001671,2]
[350170938,1737669047170,-1158.89,0.0001671,2]
[350170939,1737669047179,-25.94136495,0.0001671,2]
[350170940,1737669047405,-475.41485546,0.0001671,2]
[350170941,1737669047415,-331.38259066,0.0001671,2]
[350170942,1737669197757,155.82,0.00016658,30]
[350170943,1737669369231,-404.48092,0.00015813,2]
[350170944,1737669369253,-629.10260947,0.00015893,2]
[350170945,1737669369276,-184.81,0.00015902,2]
[350170946,1737669369298,-361.23,0.00015943,2]
[350170947,1737669369320,-250.0,0.00015968,2]
[350170948,1737669369344,-3170.37647053,0.00015993,2]
[350170949,1737669374667,393.72,0.00010137,2]
[350170952,1737669928741,-150.0,0.0001549,2]
[350170953,1737669928764,-1829.4376276,0.00015527,2]
[350170954,1737669928787,-285.46,0.00015547,2]
[350170955,1737669928810,-300.0,0.00015573,2]
[350170956,1737669928834,-12471.0,0.00015574,2]
[350170957,1737669928857,-170.13,0.00015627,2]
[350170958,1737669928882,-654.05,0.00015658,2]
[350170959,1737669928903,-200.6,0.00015739,2]
[350170960,1737669928924,-1564.58,0.00015807,2]
[350170961,1737669928945,-6975.09,0.00015822,2]
[350170962,1737669928968,-250.0,0.00015934,2]
[350170963,1737669928992,-1000.0,0.00015949,2]
[350170964,1737669929014,-149.6523724,0.00015993,2]
[350170978,1737670232154,-730.97,0.00013678,2]
[350170979,1737670232164,-675.4620646,0.00015227,2]
[350170980,1737670232270,-198.4118523,0.00015227,2]
[350170981,1737670232281,-300.0,0.00015326,2]
[350170982,1737670232291,-22099.0,0.00015327,2]
[350170983,1737670232300,-250.0,0.00015533,2]
[350170984,1737670232310,-215.23,0.00015533,2]
[350170985,1737670232319,-4978.03,0.00015587,2]
[350170986,1737670232328,-568.34,0.00015608,2]
[350170987,1737670232338,-17232.87,0.00015613,2]
[350170988,1737670232348,-201.05641381,0.00015811,2]
[350170989,1737670232358,-300.0,0.0001591,2]
[350170990,1737670232367,-38329.64352753,0.00015911,2]
[350170991,1737670232376,-730.97,0.00015942,2]
[350170992,1737670232385,-756.3574962,0.00016,3]
[350170993,1737670232396,-1942.513,0.00016042,2]
[350170994,1737670232405,-166.858,0.00016042,2]
[350170995,1737670232415,-429.028922,0.00016303,2]
[350170996,1737670232424,-215.23,0.0001631,2]
[350170997,1737670232434,-311.77187267,0.00016458,2]
[350170998,1737670232443,-1000.0,0.00016509,2]
[350170999,1737670232452,-1918.5775,0.00016509,2]
[350171000,1737670232461,-10747.54221742,0.0001651,2]
[350171001,1737670232471,-5965.5299,0.0001651,2]
[350171002,1737670232480,-3506.8593,0.0001651,2]
[350171003,1737670232490,-500.0,0.0001651,2]
[350171004,1737670232500,-3873.6325,0.0001651,2]
[350171005,1737670232510,-3052.9045,0.0001651,2]
[350171006,1737670232519,-20403.9339,0.0001651,2]
[350171007,1737670232528,-5025.4124,0.0001651,2]
[350171008,1737670232537,-506.983,0.0001651,2]
[350171009,1737670232547,-1000.0,0.0001651,2]
[350171010,1737670232557,-2500.0,0.0001651,2]
[350171011,1737670232566,-3000.0,0.0001654,2]
[350171012,1737670232575,-20000.0,0.00016561,2]
[350171013,1737670232585,-13500.68934914,0.00016568,2]
[350171014,1737670232594,-1450.09545136,0.00016569,2]
[350171015,1737670232603,-760.54392132,0.0001657,2]
[350171016,1737670232612,-200.0,0.0001657,2]
[350171017,1737670232622,-1450.09545136,0.00016572,2]
[350171019,1737670232632,-13500.68934914,0.00016577,2]
[350171021,1737670232641,-324.71121145,0.00016578,2]
[350171023,1737670232651,-760.54392132,0.00016578,2]
[350171025,1737670232660,-760.54392132,0.0001658,2]
[350171027,1737670232672,-200.0,0.00016582,2]
[350171029,1737670232682,-200.0,0.00016589,2]
[350171031,1737670232693,-13500.68934914,0.00016596,2]
[350171033,1737670232702,-13500.68934914,0.00016596,2]
[350171035,1737670232711,-420.67558414,0.00016607,2]
[350171036,1737670232721,-154.83661892,0.00016608,2]
[350171038,1737670232731,-3139.879,0.00016609,2]
[350171039,1737670232740,-1000.0,0.00016609,2]
[350171040,1737670232751,-10976.07436368,0.00016609,2]
[350171041,1737670232761,-500.0,0.00016609,2]
[350171042,1737670232770,-500.0,0.00016609,2]
[350171043,1737670232779,-500.0,0.00016609,2]
[350171044,1737670232790,-522.37,0.00016609,2]
[350171045,1737670232800,-500.0,0.00016609,2]
[350171046,1737670232809,-960.8,0.00016609,2]
[350171047,1737670232820,-568.49,0.00016609,2]
[350171049,1737670232829,-979.56,0.00016609,2]
[350171050,1737670232838,-500.0,0.00016609,2]
[350171051,1737670232848,-500.0,0.00016609,2]
[350171052,1737670232857,-801.38,0.00016609,2]
[350171053,1737670232866,-982.36,0.00016609,2]
[350171054,1737670232875,-500.0,0.00016609,2]
[350171055,1737670232884,-554.64,0.00016609,2]
[350171056,1737670232893,-500.0,0.00016609,2]
[350171057,1737670232903,-1206.77,0.00016609,2]
[350171058,1737670232912,-500.0,0.00016609,2]
[350171059,1737670232921,-1043.14,0.00016609,2]
[350171060,1737670232930,-500.0,0.00016609,2]
[350171061,1737670232939,-500.0,0.00016609,2]
[350171062,1737670232948,-500.0,0.00016609,2]
[350171063,1737670232966,-500.0,0.00016609,2]
[350171064,1737670232977,-500.0,0.00016609,2]
[350171065,1737670232987,-500.0,0.00016609,2]
[350171066,1737670232996,-1262.69,0.00016609,2]
[350171067,1737670233006,-500.0,0.00016609,2]
[350171068,1737670233015,-876.74,0.00016609,2]
[350171069,1737670233025,-500.0,0.00016609,2]
[350171070,1737670233035,-500.0,0.00016609,2]
[350171071,1737670233045,-586.39,0.00016609,2]
[350171072,1737670233055,-500.0,0.00016609,2]
[350171073,1737670233065,-500.0,0.00016609,2]
[350171074,1737670233075,-500.0,0.00016609,2]
[350171075,1737670233086,-500.0,0.00016609,2]
[350171076,1737670233096,-500.0,0.00016609,2]
[350171077,1737670233106,-324.71121145,0.0001661,2]
[350171078,1737670233116,-164549.45671833,0.0001661,2]
[350171079,1737670233131,-6639.25016709,0.0001661,2]
[350171080,1737670233143,-5183.31257379,0.0001661,2]
[350171081,1737670233155,-849.99999,0.0001661,2]
[350171082,1737670233167,-3149.999975,0.0001661,2]
[350171083,1737670233180,-9602.71000002,0.0001661,2]
[350171084,1737670233192,-1200.0000003,0.0001661,2]
[350171085,1737670233204,-425.24537943,0.0001661,2]
[350171086,1737670233216,-686.725235,0.0001661,2]
[350171087,1737670233239,-305.38058186,0.0001661,2]
[350171088,1737670233250,-311.184801,0.0001661,2]
[350171089,1737670233272,-1151.80902,0.0001661,2]
[350171090,1737670233284,-1601.46032278,0.0001661,2]
[350171093,1737670238049,-916.97,0.00016609,2]
[350171095,1737670238058,-128.48136453,0.00016609,2]
[350171098,1737670238081,-371.51863547,0.00016609,2]
[350171100,1737670238091,-318.50467726,0.0001661,2]
[350171103,1737670238114,-31431.1114959,0.0001661,2]
[350171105,1737670238232,-412.1405456,0.0001661,2]
[350171106,1737670238243,-248914.20542547,0.0001661,2]
[350171107,1737670238254,-472.9719633,0.0001661,2]
[350171108,1737670238265,-352.10604785,0.0001661,2]
[350171109,1737670238276,-1352.07546492,0.0001661,2]
[350171110,1737670238300,-1876.21666288,0.0001661,2]
[350171111,1737670238418,-988.20633372,0.0001661,2]
[350171113,1737670240212,-259.76,0.00016609,2]
[350171114,1737670240254,-240.24,0.00016609,2]
[350171115,1737670240263,-138241.71137082,0.0001661,2]
[350171116,1737670240442,-166.99897439,0.0001661,2]
[350171117,1737670240453,-398.46785856,0.0001661,2]
[350171118,1737670240462,-171032.4018,0.0001661,2]
[350171119,1737670240473,-1192.7269,0.00016611,2]
[350171120,1737670240482,-13480.1214,0.00016612,2]
[350171121,1737670240492,-420.67558414,0.00016622,2]
[350171122,1737670240502,-760.54392132,0.00016629,2]
[350171123,1737670240511,-420.67558414,0.00016635,2]
[350171124,1737670240522,-760.54392132,0.00016644,2]
[350171125,1737670240531,-1450.09545136,0.00016654,2]
[350171126,1737670240541,-420.67558414,0.00016656,2]
[350171127,1737670240552,-500.0,0.00016658,2]
[350171128,1737670240561,-13500.68934914,0.00016661,2]
[350171129,1737670240571,-1450.09545136,0.00016663,2]
[350171130,1737670240580,-1450.09545136,0.00016665,2]
[350171131,1737670240590,-324.71121145,0.00016674,2]
[350171132,1737670240599,-324.71121145,0.0001668,2]
[350171133,1737670240608,-324.71121145,0.00016686,2]
[350171134,1737670240618,-200.0,0.00016695,2]
[350171135,1737670240628,-420.67558414,0.00016697,2]
[350171136,1737670240637,-196.64786078,0.00016701,2]
[350171137,1737670240647,-195.84761223,0.00016707,2]
[350171138,1737670240656,-500.0,0.00016708,2]
[350171139,1737670240666,-13740.708319,0.00016708,2]
[350171140,1737670240675,-500.0,0.00016708,2]
[350171141,1737670240689,-1092.08,0.00016708,2]
[350171142,1737670240698,-500.0,0.00016708,2]
[350171143,1737670240707,-500.0,0.00016708,2]
[350171144,1737670240716,-500.0,0.00016708,2]
[350171145,1737670240726,-500.0,0.00016708,2]
[350171146,1737670240735,-500.0,0.00016708,2]
[350171147,1737670240745,-7940.939686,0.00016708,2]
[350171148,1737670240754,-634.34,0.00016708,2]
[350171149,1737670240766,-725.27,0.00016708,2]
[350171150,1737670240776,-1106.61,0.00016708,2]
[350171151,1737670240785,-735.85,0.00016708,2]
[350171152,1737670240795,-1312.68,0.00016708,2]
[350171153,1737670240804,-1658.12,0.00016708,2]
[350171154,1737670240814,-1860.86,0.00016708,2]
[350171155,1737670240823,-1009.07,0.00016708,2]
[350171156,1737670240832,-770.94,0.00016708,2]
[350171157,1737670240842,-1206.95,0.00016708,2]
[350171158,1737670240851,-2587.18,0.00016708,2]
[350171159,1737670240860,-1422.6,0.00016708,2]
[350171160,1737670240870,-500.0,0.00016708,2]
[350171161,1737670240879,-532.36,0.00016708,2]
[350171162,1737670240888,-818.15,0.00016708,2]
[350171163,1737670240898,-500.0,0.00016708,2]
[350171164,1737670240908,-1574.19,0.00016708,2]
[350171165,1737670240918,-811.67,0.00016708,2]
[350171166,1737670240927,-778.52,0.00016708,2]
[350171167,1737670240937,-500.0,0.00016708,2]
[350171168,1737670240946,-564.91,0.00016708,2]
[350171169,1737670240955,-524.22,0.00016708,2]
[350171170,1737670240964,-642.78,0.00016708,2]
[350171171,1737670240973,-1473.74,0.00016708,2]
[350171172,1737670240982,-760.34,0.00016708,2]
[350171173,1737670240991,-1223.52,0.00016708,2]
[350171174,1737670241000,-500.0,0.00016709,2]
[350171175,1737670241009,-500.0,0.00016709,2]
[350171176,1737670241018,-500.0,0.00016709,2]
[350171177,1737670241029,-500.0,0.00016709,2]
[350171178,1737670241038,-500.0,0.00016709,2]
[350171179,1737670241052,-500.0,0.00016709,2]
[350171180,1737670241061,-500.0,0.00016709,2]
[350171181,1737670241070,-500.0,0.00016709,2]
[350171182,1737670241079,-500.0,0.00016709,2]
[350171183,1737670241088,-500.0,0.00016709,2]
[350171184,1737670241098,-500.0,0.00016709,2]
[350171185,1737670241107,-500.0,0.00016709,2]
[350171186,1737670241117,-500.0,0.00016709,2]
[350171187,1737670241126,-500.0,0.00016709,2]
[350171188,1737670241136,-500.0,0.00016709,2]
[350171189,1737670241145,-500.0,0.00016709,2]
[350171190,1737670241154,-500.0,0.00016709,2]
[350171191,1737670241163,-500.0,0.00016709,2]
[350171192,1737670241172,-500.0,0.00016709,2]
[350171193,1737670241182,-500.0,0.00016709,2]
[350171194,1737670241191,-538.28138894,0.00016709,2]
[350171195,1737670241207,-500.0,0.00016709,2]
[350171196,1737670241216,-500.0,0.00016709,2]
[350171197,1737670241226,-500.0,0.00016709,2]
[350171198,1737670241235,-500.0,0.00016709,2]
[350171199,1737670241244,-500.0,0.00016709,2]
[350171200,1737670241253,-500.0,0.00016709,2]
[350171201,1737670241263,-500.0,0.00016709,2]
[350171202,1737670241272,-500.0,0.00016709,2]
[350171203,1737670241283,-500.0,0.00016709,2]
[350171204,1737670241293,-500.0,0.00016709,2]
[350171205,1737670241302,-500.0,0.00016709,2]
[350171206,1737670241312,-500.0,0.00016709,2]
[350171207,1737670241322,-500.0,0.00016709,2]
[350171208,1737670241331,-500.0,0.00016709,2]
[350171209,1737670241341,-500.0,0.00016709,2]
[350171210,1737670241350,-500.0,0.00016709,2]
[350171211,1737670241359,-500.0,0.00016709,2]
[350171212,1737670241368,-500.0,0.00016709,2]
[350171213,1737670241378,-500.0,0.00016709,2]
[350171214,1737670241387,-500.0,0.00016709,2]
[350171215,1737670241396,-500.0,0.00016709,2]
[350171216,1737670241406,-500.0,0.00016709,2]
[350171217,1737670241415,-500.0,0.00016709,2]
[350171218,1737670241425,-500.0,0.00016709,2]
[350171219,1737670241434,-500.0,0.00016709,2]
[350171220,1737670241444,-500.0,0.00016709,2]
[350171221,1737670241453,-500.0,0.00016709,2]